Cogmind - Beta 13 @@@ ROGUE MODE // 2024.04.01 @ 10:42:39 Player: Matt Result: Destroyed by D-53 Grenadier with Mini Grenade Launcher Performance ------------- Evolutions (0) 0 Regions Visited (2) 400 Robots Destroyed (13) 65 Value Destroyed (204) 204 Prototype IDs (0) 0 Alien Tech Used (0) 0 Bonus (0) 0 TOTAL SCORE: 669 Bonus ------- None Cogmind --------- Core Integrity 0/250 Matter 161/300 Energy 158/160 System Corruption 0% Temperature Cool (1) Movement Walking (120) Location -10/Mines Parts ------- > --- POWER (1) -------- Light Nuclear Core > --- PROPULSION (2) --- Aluminum Leg > --- UTILITY (2) ------ Small Storage Unit > --- WEAPON (2) ------- (None) > --- INVENTORY (8) ---- Ion Engine Light Treads Light Treads Wheel Compact Wheel Huge Storage Unit Assault Rifle Peak State ------------ > --- POWER ------------ Light Nuclear Core > --- PROPULSION ------- Aluminum Leg Aluminum Leg > --- UTILITY ---------- Small Storage Unit Seismic Detector > --- WEAPON ----------- EM Pulse Gun Grenade Launcher > --- INVENTORY -------- Ion Engine Light Treads Light Treads Wheel Compact Wheel Huge Storage Unit Light Armor Plating Assault Rifle [Rating: 9] Favorites ----------- Power Ion Engine Engine Ion Engine Power Core Light Nuclear Core Propulsion Aluminum Leg Treads Light Treads Leg Aluminum Leg Wheel Wheel Utility Seismic Detector Device Seismic Detector Storage Small Storage Unit Protection Light Armor Plating Weapon EM Pulse Gun Energy Gun EM Pulse Gun Ballistic Gun Assault Rifle Launcher Grenade Launcher Build | -11 -10 -10 ------- Run | Yrd Mat Min Slots Evolved . | . . . Power . | . . . Propulsion . | . . . Utility . | . . . Weapon . | . . . Parts Attached 28 | 13 14 1 Power 2 | 1 1 . Engine 1 | 1 . . Core 1 | . 1 . Reactor . | . . . Propulsion 11 | 6 5 . Treads 4 | 2 2 . Leg 5 | 2 3 . Wheel 2 | 2 . . Hover . | . . . Flight . | . . . Utility 8 | 2 5 1 Device 1 | 1 . . Storage 6 | 1 5 . Processor . | . . . Hackware . | . . . Protection 1 | . . 1 Artifact . | . . . Weapon 7 | 4 3 . Energy Gun 2 | 2 . . Energy Cannon . | . . . Ballistic Gun 3 | 2 1 . Ballistic Cannon . | . . . Launcher 2 | . 2 . Special Weapon . | . . . Impact Weapon . | . . . Slashing Weapon . | . . . Piercing Weapon . | . . . Special Melee Weapon . | . . . Unidentified Prototypes . | . . . Parts Lost 5 | . . 5 Power . | . . . Propulsion 1 | . . 1 Utility 2 | . . 2 Weapon 2 | . . 2 Highest Loss Streak 3 | . . 3 To Critical Strikes . | . . . Average Slot Usage (%) 94 | . 99 86 Engine 7 | . 12 . Core 6 | . 1 14 Treads 8 | . 14 . Leg 18 | . 12 26 Device 11 | . 14 7 Storage 14 | . 14 14 Protection 1 | . . 4 Energy Gun 11 | . 14 7 Ballistic Gun 7 | . 12 . Launcher 5 | . 1 11 Naked Turns . | . . . Heaviest Build 90 | 15 90 16 Greatest Support 40 | 40 40 20 Greatest Overweight (x) 4 | . 4 . Average Overweight (x) . | . . . Largest Inventory Capacity 25 | 8 25 8 Average Capacity 10 | 7 18 8 Most Carried 13 | 7 13 8 Average Carried 7 | 6 9 7 Final Capacity 8 | 8 8 8 Final Carried 8 | 7 8 7 Class Distribution -------------------- 100% | Mutant Dominant Class ---------------- Mutant | -10/Materials Mutant | -10/Mines Resources | -11 -10 -10 ----------- Run | Yrd Mat Min Matter Collected 422 | 285 131 6 Remotely . | . . . Salvage Created 225 | 113 95 17 Parts 19 | 3 13 3 Haulers Intercepted . | . . . Recyclers Shooed . | . . . Parts Field Recycled . | . . . Retrieved Matter . | . . . Parts Self-Destructed . | . . . Prevented . | . . . Kills | -11 -10 -10 ------- Run | Yrd Mat Min Combat Hostiles Destroyed 11 | . 8 3 Guns 1 | . 1 . AOE 10 | . 7 3 Classes Destroyed 4 | 2 2 . Tunneler 1 | 1 . . Recycler 1 | 1 . . Swarmer 9 | . 6 3 Grunt 2 | . 2 . Best Kill Streak 5 | 2 5 3 Combat Bots Only 5 | . 5 3 Max Kills in Single Turn 3 | 1 3 2 Gunslinging . | . . . Exploded 3 | . 3 2 Melee . | . . . Uniques/NPCs Destroyed . | . . . Combat | -11 -10 -10 -------- Run | Yrd Mat Min Hostile Shots Fired 42 | . 22 20 Missed 10 | . 8 2 Damage Taken 802 | 26 168 608 Core 261 | . 17 244 Absorbed by Shields . | . . . Core Remaining (%) 100 | 100 . . Volleys Fired 19 | 12 5 2 Largest 2 | 2 2 2 Hottest 70 | 40 70 70 Shots Fired 31 | 18 10 3 Gun 24 | 18 5 1 Cannon . | . . . Launcher 7 | . 5 2 Special . | . . . Kinetic 12 | 12 . . Thermal . | . . . Explosive 7 | . 5 2 Electromagnetic 12 | 6 5 1 Robot Hit Streak 6 | 6 3 1 Robot Miss Streak 2 | 1 1 2 Penetration Max . | . . . Secondary Targets . | . . . Shots Hit Robots 20 | 14 5 1 Core Hits 15 | 3 10 2 Critical Kills . | . . . Critical Parts Destroyed . | . . . Critical Strikes . | . . . Melee Attacks . | . . . Impact . | . . . Slashing . | . . . Piercing . | . . . Sneak Attacks . | . . . Combat Hostiles . | . . . Follow-up Attacks . | . . . Damage Inflicted 737 | 206 413 118 Guns 196 | 173 23 . Cannons . | . . . Explosions 541 | 33 390 118 Melee . | . . . Ramming . | . . . Kinetic 108 | 108 . . Thermal 33 | 33 . . Explosive 508 | . 390 118 Electromagnetic 88 | 65 23 . Impact . | . . . Slashing . | . . . Piercing . | . . . Highest Corruption . | . . . Average Corruption . | . . . Corruption Purged . | . . . Corruption Blocked . | . . . Overload Shots . | . . . Overflow Damage 50 | . . 50 Projectiles . | . . . Explosions 50 | . . 50 Melee . | . . . Knockbacks . | . . . Impact . | . . . Kinetic . | . . . Secondary . | . . . Self-Inflicted Damage 110 | 27 17 66 Shots 5 | 1 2 2 Rammed . | . . . Targets Rammed . | . . . Kicked . | . . . Crushed . | . . . Highest Temperature 42 | 12 42 15 Average Temperature 14 | 12 15 10 Received Heat Transfer 54 | . 54 . Siege Activations . | . . . Robots Corrupted . | . . . Combat Hostiles . | . . . Parts Fried . | . . . Impact Corruptions . | . . . Robots Melted . | . . . Combat Hostiles . | . . . Parts Melted . | . . . Heat Transferred 50 | 50 . . Parts Sabotaged . | . . . Parts Stolen . | . . . Parts Stripped . | . . . Power Chain Reactions 1 | 1 . . Alert | -11 -10 -10 ------- Run | Yrd Mat Min Peak Influence 247 | 10 247 97 Initial 31 | . . 31 Average 23 | 2 50 59 Maximum Alert Level 1 | . 1 . Low Security (%) 99 | 100 96 100 Level 1 . | . 3 . Level 2 . | . . . Level 3 . | . . . Level 4 . | . . . Level 5 . | . . . High Security . | . . . Max Security . | . . . Squads Dispatched . | . . . Investigation . | . . . Extermination . | . . . Reinforcement . | . . . Assault . | . . . Garrison . | . . . Intercept . | . . . Searches Triggered . | . . . Construction Impeded . | . . . Haulers Reinforced . | . . . Active Scanning Responses . | . . . Cargo Convoy Interrupts . | . . . Stealth | -11 -10 -10 --------- Run | Yrd Mat Min Distress Signals 1 | . 1 . Communications Jammed . | . . . Distress Signals . | . . . Times Spotted 22 | . 10 12 Peak Tracking Total 11 | . 5 11 Tactical Retreats . | . . . Traps | -11 -10 -10 ------- Run | Yrd Mat Min Traps Triggered . | . . . Indirectly . | . . . Trap Hack Attempts . | . . . Triggered . | . . . Disarmed . | . . . Reprogrammed . | . . . Reused . | . . . Traps Extracted . | . . . Installed . | . . . Triggered . | . . . Machines | -11 -10 -10 ---------- Run | Yrd Mat Min Machines Disabled 2 | . 2 . Max in Single Turn 2 | . 2 . Machines Repaired . | . . . Machines Dismantled . | . . . Machines Sabotaged . | . . . Overloaded Fab Kills . | . . . Hacking | -11 -10 -10 --------- Run | Yrd Mat Min Machines Accessed 1 | . 1 . Terminals 1 | . 1 . Fabricators . | . . . Repair Stations . | . . . Recycling Units . | . . . Scanalyzers . | . . . Garrison Access . | . . . Total Hacks 2 | . 2 . Successful 2 | . 2 . Failed . | . . . Catastrophic . | . . . Database Lockouts . | . . . Manual . | . . . Terminals 2 | . 2 . Fabricators . | . . . Repair Stations . | . . . Recycling Units . | . . . Scanalyzers . | . . . Garrison Access . | . . . Terminal Hacks 2 | . 2 . Record 1 | . 1 . Zone Layout 1 | . 1 . Fabricator Hacks . | . . . Repair Station Hacks . | . . . Recycling Unit Hacks . | . . . Scanalyzer . | . . . Garrison Access Hacks . | . . . Unauthorized Hacks . | . . . Terminals . | . . . Fabricators . | . . . Repair Stations . | . . . Recycling Units . | . . . Scanalyzers . | . . . Garrison Access . | . . . Data Cores Recovered . | . . . Used . | . . . Hacking Detections 1 | . 1 . Full Trace Events . | . . . Feedback Events . | . . . Feedback Blocked . | . . . Robot Schematics Acquired . | . . . Robots Built . | . . . Authchips . | . . . Time . | . . . Total Robot Build Rating . | . . . Part Schematics Acquired . | . . . Parts Built . | . . . Authchips . | . . . Time . | . . . Total Part Build Rating . | . . . Parts Repaired . | . . . Time . | . . . Parts Recycled . | . . . Recycled Matter . | . . . Retrieved Matter . | . . . Retrieved Components . | . . . Parts Scanalyzed . | . . . Part Schematics Acquired . | . . . Parts Damaged . | . . . Bothacking | -11 -10 -10 ------------ Run | Yrd Mat Min Used RIF Installer . | . . . Robots Hacked . | . . . Non-combat . | . . . Combat . | . . . Robot Hacks Applied . | . . . Relay Couplers Released . | . . . Fabnet Peak Effective % . | . . . Robots Rewired . | . . . Allies Hacked . | . . . Hacks Repelled . | . . . Allies | -11 -10 -10 -------- Run | Yrd Mat Min Total Allies . | . . . Largest Group . | . . . Highest-Rated Group . | . . . Highest-Rated Ally . | . . . Total Orders . | . . . Ally Attacks . | . . . Total Damage . | . . . Kills . | . . . Allies Corrupted . | . . . Allies Melted . | . . . Intel | -11 -10 -10 ------- Run | Yrd Mat Min Robot Analysis Total . | . . . Derelict Logs Recovered 1 | . . 1 Drone Launches . | . . . Drone Recoveries . | . . . Exploration | -11 -10 -10 ------------- Run | Yrd Mat Min Turns Passed 1809 | 1083 434 292 Spaces Moved 696 | 294 180 222 Core 6 | 6 . . Treads 89 | 19 70 . Legs 601 | 269 110 222 Wheels . | . . . Hover . | . . . Flight . | . . . Fastest Speed 50 | 50 120 120 Average Speed 144 | 121 211 120 Slowest Speed 400 | 160 400 120 Overloaded Moves . | . . . Propulsion Burnouts . | . . . Robots Hopped . | . . . Cave-ins Triggered . | . . . Exploration Rate (%) 31 | 28 22 44 Regions Visited 2 Branch Regions 1 Pre-discovered Areas . | . . . Known Exits Taken . | . . . Unknown Exits Taken 2 | 1 1 . Scrap Searched . | . . . Spaces Dug . | . . . Terrain Destroyed 50 | 1 30 19 Melee . | . . . Projectile . | . . . AOE 50 | 1 30 19 Terrain Rammed . | . . . Walls Destroyed . | . . . Machines Disabled . | . . . Actions | -11 -10 -10 --------- Run | Yrd Mat Min Total 1464 | 998 221 245 Wait 687 | 667 . 20 Move 694 | 293 179 222 Hop . | . . . Pick Up 24 | 11 13 . Fast Attach 6 | 5 1 . Attach 3 | 2 . 1 Detach . | . . . Swap 19 | 6 13 . Drop 12 | 2 10 . Fire 19 | 12 5 2 Melee . | . . . Ram . | . . . Kick . | . . . Crush . | . . . Escape Stasis . | . . . Rewire . | . . . Trap . | . . . Miscellaneous . | . . . Route ------- -11/Scrapyard -10/Materials -10/Mines (discovered 1 exit: [*Mat]) History --------- Turn | Location | Event 14 | -11/Scrapyard | Discovered new exit (range 14) 1084 | -11/Scrapyard | Entered Materials 1085 | -10/Materials | Build established: Mutant 1194 | -10/Materials | Discovered new exit (range 16) 1518 | -10/Materials | Entered Mines 1522 | -10/Mines | Met a Derelict bent on vengeance 1528 | -10/Mines | Discovered new exit (range 9) 1652 | -10/Mines | Found a hidden stash of uninstalled traps 1730 | -10/Mines | Learned Materials garrison access intel 1749 | -10/Mines | Assembled infested the area 1754 | -10/Mines | Assisted by a Guerilla fighting off Assembled 1802 | -10/Mines | Core integrity fell below 50% 1808 | -10/Mines | Core integrity fell below 20% 1810 | -10/Mines | Lost 3 parts (1n1u1w) 1810 | -10/Mines | Destroyed by D-53 Grenadier with Mini Grenade Launcher Last Messages --------------- Grenade Launcher destroyed. Lgt. Armor Plating destroyed. ST-Y33(h) destroyed. Aluminum Leg destroyed. R-06 Scavenger destroyed. U-05 Engineer lays Concrete. TL-140(g) destroyed. as-90150 sneak attacks. T-07 Excavator system corrupted by crushing effect. T-07 Excavator knocked back. U-05 Engineer builds a Wall. The unstable cave ceiling collapses. U-05 Engineer lays Concrete. T-07 Excavator knocked back. U-05 Engineer builds a Wall. as-67198 destroyed. as-21642 destroyed. as-90150 destroyed. as-27158 destroyed. Map ----- +----------------------------------------------------+ | | | | | | | | | | | | | ?????????????????????????????????????????????????? | | ?????????????????????????????????????????????????? | | ?????????????????????????????????????????????????? | | ?????????????????????????????????????????????????? | | ????????????????????????????????????????????####?? | | ??????????????????????????????????????????? ?? | | ????????????????????????????????????????? """ ?? | | ????????????????????????????????????????" """ #? | | ???????????????????????????????????????"" """ #? | | ???????????????????????????????????????? #? | | ??????????????????????????????????????""" """ #? | | ?????????????????????????###??????????""" """ #? | | ?????????????????????????# ???? """ """ ## | | ?????????????????????????# #???????# | | ?????????????????????????# #???????# = | | ??????????????????????#??# ######### # | | ??????????????????????# ?# ## # # ## # | | ??????????????????????# ## ######## ### | | ??????????????????????# ##?????# ### | | ???????????????????????# @ #?????# & | | ???????????????????????# #?????# ### & | | ???????????????????###?## #?????# #?# # | | ??????????????????## ?# ##?????# #?# # | | ?????????????????#" #### #??????# #?# # | | ?????????????????## ????### dd ##??????# ### # | | ?????????????????# % ?????## ###?????# | | ?????????????????= % = #????# ##????# | | ???????????????????#" %! #??## ##???####### | | ?????????????????????#% =## ###???????# | | ?????????????????????# =%* ######### | | ?????????????????????# ! # | | ?????????????????????# # | | ?????????????????????# % ####### # | | ?????????????????????## ##??#### # | | ??????????????????????### #?## # # | | ?????????????????????????### # ##### # | | ?????????????????????????????### | | ???????????????????????????????## ##### | | ????????????????????????????????# #?## | | ?????????????????????????????### ##??### | | ????????????????????????????## ####?#### | | ????????????????????????????# ##???? | | ????????????????????????????## #???? | | ?????????????????????????????#### #???? | +----------------------------------------------------+ Best States ------------- Heat Dissipation 25 Energy Generation 14 Energy Capacity 250 Matter Stores 250 Matter Capacity 300 Sight Range 16 Terrain Scan Density 10 Armor Coverage 150 Evasion (%) 55 Recoil Reduction 2 Item Schematics ----------------- None Robot Schematics ------------------ None Fabricated ------------ Nothing Alien Tech Used ----------------- None Achievements -------------- Let's See Who's Tougher Challenges ------------ None Game ------ Seed GaussTripodLog Manual? 0 Play Time 00:18:31 Cumulative 4.4 hours Start 2024.04.01 @ 10:23:05 End 2024.04.01 @ 10:42:39 Sessions 1 Manual Loads 0 Difficulty Rogue Special Mode None Game No. 4 Rogue 4 Adventurer 0 Explorer 0 Win Type - Total 0 Types 0/0/0/0/0/0/0/0/0 Lore% 11 Gallery% 7 Achievement% 8 Wizard Run 0 Options --------- Layout 1 ASCII 0 Keyboard 0 Movement Mouse Keybinds 0 Fullscreen 1 Font 24/Smallcaps Map View 50x35 Zoom Use 0% Tactical HUD 0 Map Filters NONE Filters NONE Steam 1 RUN: be8d62df-060e-45d1-ae2d-adefed92401d